bitfinex-derivatives/quotes_ETHF0:USTF0_20260307
["timestamp","ask_amount","ask_price","bid_price","bid_amount"]
[1772872735212,2.33963124,1984.5,1983.7,2.39380933]
[1772872735414,2.33963124,1984.5,1983.5,6.27856185]
[1772872735611,2.33963124,1984.5,1983.6,2.39380933]
[1772872738613,2.20219905,1984.3,1983.6,2.39380933]
[1772872747821,2.20219905,1984.3,1983.4,8.48839114]
[1772872748924,2.20219905,1984.3,1983.5,2.20982929]
[1772872750023,2.20219905,1984.3,1983.4,6.27856185]
[1772872750219,2.20219905,1984.3,1983.3,8.49281689]
[1772872750424,2.13891222,1984.1,1983.3,8.49281689]
[1772872750821,2.13891222,1984.1,1983.4,2.20982929]
[1772872752627,2.13891222,1984.1,1982.9,10.40690228]
[1772872752628,0.46683497,1984.0,1982.9,6.32691139]
[1772872752833,1.82357542,1983.6,1982.8,2.20982929]
[1772872753032,9.44857542,1983.6,1982.8,2.20982929]
[1772872753734,6.13601487,1983.5,1982.8,2.21418601]
[1772872753934,9.44857542,1983.6,1982.8,2.21418601]
[1772872754127,6.13601487,1983.5,1982.8,2.21418601]
[1772872754431,2.13891222,1983.8,1982.8,2.21418601]
[1772872754635,8.27022711,1983.7,1982.8,2.21418601]
[1772872754830,2.13891222,1983.7,1982.8,2.21418601]
[1772872756536,7.628,1983.8,1982.2,2.20982929]
[1772872756537,2.13891222,1983.2,1982.2,2.20982929]
[1772872756734,9.77191222,1983.2,1982.2,2.20982929]
[1772872757036,2.13891222,1983.1,1982.3,2.20982929]
[1772872757430,2.14369147,1983.1,1982.3,2.21480789]
[1772872760840,0.00477925,1983.1,1982.3,2.21480789]
[1772872762543,0.00477925,1983.1,1982.5,2.20982929]
[1772872762841,9.22565634,1984.8,1982.5,2.20982929]
[1772872762842,2.13891222,1983.5,1982.5,2.20982929]
[1772872763735,2.144828,1983.5,1982.5,2.20982929]
[1772872778558,2.62111128,1983.4,1982.7,2.59980374]
[1772872782961,2.62111128,1983.2,1982.7,2.59980374]
[1772872789959,2.62111128,1983.3,1982.7,2.59980374]
[1772872790559,2.62702706,1983.5,1982.9,2.59980374]
[1772872790765,8.63041082,1983.4,1982.9,2.59980374]
[1772872791062,2.62111128,1983.4,1982.9,2.59980374]
[1772872792464,0.00591578,1983.5,1982.9,2.59980374]
[1772872792663,2.4067362,1983.8,1983.3,2.59980374]
[1772872792864,8.28951743,1983.7,1983.3,2.59980374]
[1772872793165,2.4067362,1983.7,1983.3,2.59980374]
[1772872793564,2.41286486,1983.7,1983.3,2.59980374]
[1772872795367,0.00612866,1983.7,1983.3,2.59980374]
[1772872795669,2.45002837,1983.7,1983.3,2.59980374]
[1772872799075,0.00612866,1983.7,1983.3,2.59980374]
[1772872800665,2.40458032,1983.9,1983.3,2.59980374]
[1772872800866,2.40458032,1984.1,1983.3,2.59980374]
[1772872801072,8.27170805,1984.0,1983.4,2.40925057]
[1772872801267,2.40217822,1984.0,1983.4,2.40925057]
[1772872801666,2.40648443,1984.0,1983.4,2.40925057]
[1772872802177,0.00430621,1984.0,1983.4,2.40925057]
[1772872803578,0.00430621,1984.0,1983.6,2.36229874]
[1772872804579,0.00430621,1984.0,1983.8,2.36229874]
[1772872804782,2.36821187,1984.2,1983.8,2.36830528]
[1772872805782,2.37189671,1984.2,1983.8,2.36830528]
[1772872810885,0.00368484,1984.2,1983.8,2.36830528]
[1772872811584,2.31365134,1984.2,1983.8,2.36830528]
[1772872815790,2.22861992,1983.9,1983.5,2.36229874]
[1772872816187,2.22861992,1983.9,1983.5,43.16229874]
[1772872816389,2.22861992,1983.9,1983.6,2.32931668]
[1772872816688,2.22861992,1983.9,1983.6,2.33351658]
[1772872820789,2.15038327,1984.1,1983.6,2.33351658]
[1772872827892,2.03176513,1983.7,1983.2,28.13931668]
[1772872828092,2.03176513,1983.5,1983.2,28.13931668]
[1772872828392,2.03176513,1983.6,1983.3,2.32931668]
[1772872828894,2.03176513,1983.6,1983.3,2.33582356]
[1772872831494,2.03176513,1983.6,1983.3,0.00650688]
[1772872831695,2.03176513,1983.6,1983.3,2.33582356]
[1772872831996,2.03176513,1983.6,1983.3,0.00650688]
[1772872832294,2.03176513,1983.6,1983.3,0.00220068]
[1772872837902,1.87319036,1983.5,1983.1,2.21087046]
[1772872838100,1.87319036,1983.5,1983.0,43.01087046]
[1772872838899,1.87319036,1983.5,1983.0,43.01540125]
[1772872840903,1.87319036,1983.5,1983.0,2.21540125]
[1772872842102,1.87319036,1983.5,1982.9,2.21087046]
[1772872842505,1.87319036,1983.5,1982.9,43.01087046]
[1772872842703,1.87319036,1983.5,1983.0,2.21087046]
[1772872842999,1.87319036,1983.5,1983.0,2.21666975]
[1772872844406,1.80245424,1983.6,1983.0,2.21666975]
[1772872844704,1.79228647,1983.7,1983.0,2.21666975]
[1772872848007,1.79228647,1983.7,1983.2,2.21087046]
[1772872855019,1.70450262,1983.5,1983.2,2.21087046]
[1772872857017,1.70450262,1983.5,1982.7,2.21087046]
[1772872857221,1.68441778,1983.3,1982.7,2.21087046]
[1772872857614,1.67447543,1983.1,1982.7,2.21087046]
[1772872858014,1.67447543,1983.1,1982.7,2.21674115]
[1772872861923,1.67447543,1983.1,1982.6,1.65795534]
[1772872862923,5.80288825,1983.0,1982.1,2.09394748]
[1772872863120,9.82777022,1983.1,1982.1,2.09394748]
[1772872863320,2.16677022,1983.2,1982.3,2.09394748]
[1772872863823,2.16677022,1983.2,1982.3,2.10007761]
[1772872866026,2.16677022,1983.3,1982.3,2.10007761]
[1772872868924,2.16677022,1983.3,1982.5,2.09394748]
[1772872874331,2.16677022,1983.3,1982.6,40.8]
[1772872874530,2.16677022,1983.3,1982.4,2.09394748]
[1772872874931,2.16677022,1983.3,1982.5,2.09394748]
[1772872879636,1.99718694,1983.5,1982.5,2.09394748]
[1772872879839,1.99718694,1983.3,1982.5,2.09394748]
[1772872880333,1.99619208,1983.6,1982.7,2.09394748]
[1772872880541,5.83637936,1983.5,1982.9,2.09394748]
[1772872880741,1.99619208,1983.6,1982.9,2.09394748]
[1772872880943,5.83556157,1983.5,1982.9,2.09394748]
[1772872881142,1.99619208,1983.6,1982.9,2.09394748]
[1772872881342,5.8362848,1983.5,1982.9,2.09394748]
[1772872881541,1.99619208,1983.6,1982.9,2.09394748]
[1772872881742,5.8361579,1983.5,1982.9,2.09394748]
[1772872882042,1.99619208,1983.6,1982.9,2.09394748]
[1772872883438,11.91202424,1983.9,1982.9,2.09394748]
[1772872883639,1.96936973,1983.7,1982.9,2.09394748]
[1772872883941,5.83598737,1983.6,1982.9,2.09394748]
[1772872884142,1.96936973,1983.7,1982.9,2.09394748]
[1772872884341,5.83606453,1983.6,1982.9,2.09394748]
[1772872884541,1.96936973,1983.7,1982.9,2.09394748]
[1772872894249,1.88148686,1983.9,1982.9,2.09394748]
[1772872894450,7.7135697,1983.8,1982.9,2.09394748]
[1772872894642,1.88148686,1983.8,1982.9,2.09394748]
[1772872898447,1.88148686,1983.8,1983.1,2.09356665]
[1772872901853,1.81493317,1983.6,1983.1,2.09356665]
[1772872906549,1.81493317,1983.6,1983.0,2.09356665]
[1772872909351,1.72011973,1983.4,1983.0,2.09356665]
[1772872911151,1.72011973,1983.4,1982.8,40.8]
[1772872911358,1.69985618,1983.2,1982.8,42.89356665]
[1772872911958,1.69985618,1983.2,1982.9,2.09356665]
[1772872914957,1.66107986,1983.4,1982.9,2.09356665]
[1772872917755,1.66107986,1983.4,1982.8,42.89356665]
[1772872917955,1.63507148,1983.2,1982.7,28.79656665]
[1772872918359,1.63507148,1983.2,1982.7,42.89356665]
[1772872918861,1.63507148,1983.2,1982.7,2.09356665]
[1772872921361,1.63507148,1983.2,1982.5,40.8]
[1772872921362,1.58880818,1983.0,1982.6,1.91280576]
[1772872923668,1.58880818,1983.0,1982.5,1.85567644]
[1772872925773,1.94109964,1982.9,1982.4,1.85567644]
[1772872925974,1.50551021,1982.8,1982.4,1.85567644]
[1772872926173,1.51191833,1982.8,1982.4,1.85567644]
[1772872929277,1.51191833,1982.8,1982.3,1.86180657]
[1772872929575,0.00640812,1982.8,1982.4,1.85567644]
[1772872937283,1.37697749,1983.2,1982.4,1.85567644]
[1772872937480,1.37697749,1983.2,1982.6,1.85567644]
[1772872937982,1.36762204,1983.3,1982.6,1.85567644]
[1772872938181,5.80682515,1983.2,1982.6,1.85567644]
[1772872938482,0.00608274,1983.2,1982.6,1.85567644]
[1772872942785,1.35917082,1983.4,1982.6,1.85567644]
[1772872942982,5.80824856,1983.3,1982.6,1.85567644]
[1772872943178,1.35917082,1983.4,1982.6,1.85567644]
[1772872943480,5.80637013,1983.3,1982.6,1.85567644]
[1772872943682,1.35917082,1983.4,1982.6,1.85567644]
[1772872943875,5.8065295,1983.3,1982.6,1.85567644]
[1772872944078,1.36374029,1983.4,1982.6,1.85567644]
[1772872944280,5.80755782,1983.3,1982.6,1.85567644]
[1772872944475,1.36374029,1983.4,1982.6,1.85567644]
[1772872944686,5.80755317,1983.3,1982.6,1.85567644]
[1772872944986,1.36374029,1983.4,1982.6,1.85567644]
[1772872945183,5.80744323,1983.3,1982.6,1.85567644]
[1772872945485,1.36374029,1983.4,1982.6,1.85567644]
[1772872945685,5.80881784,1983.3,1982.6,1.85567644]
[1772872945885,1.36374029,1983.4,1982.6,1.85567644]
[1772872946078,5.80866356,1983.3,1982.6,1.85567644]
[1772872946285,1.36374029,1983.4,1982.8,1.85567644]
[1772872946586,0.00456947,1983.4,1982.8,1.85567644]
[1772872948589,1.31812126,1983.4,1982.8,1.85567644]
[1772872953495,0.00456947,1983.4,1982.8,1.85567644]
[1772872963708,1.08897202,1983.4,1982.8,1.85567644]
[1772872971116,1.03083259,1983.2,1982.8,1.85567644]
[1772872972116,1.03083259,1983.2,1982.8,1.37406404]
[1772872972816,1.03083259,1983.2,1982.4,1.74964882]
[1772872983819,5.80779781,1983.1,1982.3,0.00613013]
[1772872984023,6.27395012,1983.0,1982.3,1.69802479]
[1772872984320,5.80779781,1982.9,1982.3,1.69802479]
[1772872984521,1.45689989,1983.0,1982.3,1.69802479]
[1772872984722,5.84893104,1982.9,1982.3,1.69802479]
[1772872984922,1.45689989,1983.0,1982.3,1.69802479]
[1772872985222,7.29865105,1982.9,1982.3,1.69802479]
[1772872985423,1.4494958,1982.9,1982.3,1.69802479]
[1772872991926,1.4014123,1983.1,1982.3,1.69802479]
[1772872996127,1.35767374,1982.9,1982.3,1.69802479]
[1772873009941,1.20297785,1982.8,1982.3,1.69802479]
[1772873010141,1.20232806,1982.9,1982.3,1.69802479]
[1772873013246,5.85289339,1982.8,1982.3,1.69802479]
[1772873013448,1.20232806,1982.9,1982.3,1.69802479]
[1772873013648,5.85289224,1982.8,1982.3,1.69802479]
[1772873013946,1.20232806,1982.9,1982.3,1.69802479]
[1772873014146,5.8528912,1982.8,1982.3,1.69802479]
[1772873014346,1.20232806,1982.9,1982.3,1.69802479]
[1772873014546,5.8530606,1982.8,1982.3,1.69802479]
[1772873014747,1.20232806,1982.9,1982.3,1.69802479]
[1772873014950,5.85290866,1982.8,1982.3,1.69802479]
[1772873015148,1.20232806,1982.9,1982.3,1.69802479]
[1772873015450,5.85306074,1982.8,1982.3,1.69802479]
[1772873015750,1.20232806,1982.9,1982.5,1.51498206]
[1772873015951,7.04037883,1982.8,1982.5,1.51498206]
[1772873016250,1.18731889,1982.8,1982.5,1.51498206]
[1772873017551,1.1758295,1983.0,1982.5,1.51498206]
[1772873017753,1.16743229,1982.8,1982.5,1.51498206]
[1772873019552,1.15883515,1983.0,1982.5,1.51498206]
[1772873019752,7.00377227,1982.9,1982.5,1.51498206]
[1772873019951,5.85326578,1982.8,1982.5,1.51498206]
[1772873020153,7.00304878,1982.8,1982.5,1.51498206]
[1772873020355,1.149783,1982.8,1982.5,1.51498206]
[1772873021354,1.1455568,1983.0,1982.5,1.51498206]
[1772873021554,6.99196307,1982.9,1982.5,1.51498206]
[1772873021756,1.13730557,1982.9,1982.5,1.51498206]
[1772873022254,1.13730557,1982.9,1982.4,42.31498206]
[1772873022456,4.22108249,1983.1,1982.4,42.31498206]
[1772873022457,1.13657653,1983.0,1982.5,1.51498206]
[1772873022657,6.98326685,1982.9,1982.5,1.51498206]
[1772873022954,1.12835756,1982.9,1982.5,1.51498206]
[1772873035269,1.12835756,1982.9,1982.4,1.51498206]
[1772873036166,1.12835756,1982.9,1982.3,40.8]
[1772873036371,4.22108249,1982.7,1981.9,1.5478951]
[1772873036666,5.8541237,1982.7,1981.9,1.5478951]
[1772873036867,5.8541237,1982.6,1981.9,1.5478951]
[1772873037067,5.8541237,1982.5,1981.9,1.5478951]
[1772873037260,1.94286063,1982.8,1982.0,1.54857618]
[1772873037564,5.87807369,1982.7,1982.0,1.54857618]
[1772873037766,1.51136217,1982.9,1982.0,1.54857618]
[1772873037968,7.38952921,1982.8,1982.0,1.54857618]
[1772873038166,5.87816704,1982.7,1982.0,1.54857618]
[1772873038367,1.51136217,1982.8,1982.0,1.54857618]
[1772873038566,5.8772024,1982.7,1982.0,1.54857618]
[1772873038767,1.51136217,1982.8,1982.0,1.54857618]
[1772873038969,5.87731227,1982.7,1982.0,1.54857618]
[1772873039269,1.51136217,1982.8,1982.0,1.54857618]
[1772873039468,5.87662166,1982.7,1982.0,1.54857618]
[1772873039669,1.51136217,1982.8,1982.0,1.54857618]
[1772873039869,5.87658484,1982.7,1982.0,1.54857618]
[1772873040170,1.51136217,1982.8,1982.0,1.54857618]
[1772873040372,5.87590736,1982.7,1982.0,1.54857618]
[1772873040570,1.51136217,1982.8,1982.0,1.54857618]
[1772873040764,8.57419895,1982.7,1982.0,1.54857618]
[1772873040968,2.69824715,1982.7,1982.0,1.54857618]
[1772873042274,2.69824715,1982.7,1982.1,40.8]
[1772873042468,2.69824715,1982.7,1982.2,2.56984042]
[1772873045375,2.5622033,1982.9,1982.2,2.56984042]
[1772873045576,5.87356657,1982.8,1982.2,2.56984042]
[1772873045777,2.5622033,1982.9,1982.2,2.56984042]
[1772873045980,8.42049617,1982.8,1982.2,2.56984042]
[1772873046177,2.54698389,1982.8,1982.2,2.56984042]
[1772873046369,2.54576215,1982.9,1982.2,2.56984042]
[1772873046572,5.87289213,1982.8,1982.2,2.56984042]
[1772873046774,2.54576215,1982.9,1982.2,2.56984042]
[1772873046975,5.87287216,1982.8,1982.2,2.56984042]
[1772873047174,2.54576215,1982.9,1982.2,2.56984042]
[1772873047375,8.41472293,1982.8,1982.4,2.56984042]
[1772873047679,2.54188968,1982.8,1982.4,2.56984042]
[1772873049783,2.54188968,1982.8,1982.3,30.47184042]
[1772873050782,2.54188968,1982.8,1982.4,2.56984042]
[1772873057586,2.3505746,1982.6,1982.2,2.56984042]
[1772873058487,2.34943193,1982.7,1982.2,2.56984042]
[1772873060289,5.87657375,1982.6,1982.2,2.56984042]
[1772873060487,2.34943193,1982.7,1982.2,2.56984042]
[1772873061290,5.8771244,1982.6,1982.2,2.56984042]
[1772873061495,2.34943193,1982.7,1982.2,2.56984042]
[1772873061690,5.87717056,1982.6,1982.2,2.56984042]
[1772873061989,2.34943193,1982.7,1982.2,2.56984042]
[1772873062190,5.87736004,1982.6,1982.2,2.56984042]
[1772873062493,2.34943193,1982.7,1982.2,2.56984042]
[1772873062692,5.87786476,1982.6,1982.2,2.56984042]
[1772873062892,2.34943193,1982.7,1982.2,2.56984042]
[1772873063094,8.12246326,1982.6,1982.2,2.56984042]
[1772873063393,2.2445985,1982.6,1982.2,2.56984042]
[1772873065392,2.20476189,1982.4,1982.1,30.69984042]
[1772873067200,2.20476189,1982.4,1982.1,28.13]
[1772873068102,2.20476189,1982.4,1982.1,30.69984042]
[1772873070102,3.93372629,1982.6,1982.2,2.56984042]
[1772873070301,1.99086566,1982.6,1982.2,2.56984042]
[1772873070504,5.88088486,1982.5,1982.2,2.56984042]
[1772873070705,1.99086566,1982.6,1982.2,2.56984042]
[1772873071003,5.88145279,1982.5,1982.2,2.56984042]
[1772873071198,1.99086566,1982.6,1982.2,2.56984042]
[1772873071403,5.88119357,1982.5,1982.2,2.56984042]
[1772873071599,1.99086566,1982.6,1982.2,2.56984042]
[1772873071800,5.88123722,1982.5,1982.2,2.56984042]
[1772873072001,1.99086566,1982.6,1982.2,2.56984042]
[1772873072200,5.88097249,1982.5,1982.2,2.56984042]
[1772873072401,1.99086566,1982.6,1982.2,2.56984042]
[1772873072601,5.88101933,1982.5,1982.2,2.56984042]
[1772873072806,3.93372629,1982.6,1982.2,2.56984042]
[1772873073107,7.83866828,1982.5,1982.2,2.56984042]
[1772873073301,1.95716519,1982.5,1982.2,2.56984042]
[1772873075303,3.8203401,1982.6,1982.2,2.56984042]
[1772873075502,7.7588906,1982.5,1982.2,2.56984042]
[1772873075710,1.87747947,1982.5,1982.2,2.56984042]
[1772873083812,3.68311205,1982.6,1982.2,2.56984042]
[1772873084111,5.88323863,1982.5,1982.2,2.56984042]
[1772873084312,3.68311205,1982.6,1982.2,2.56984042]
[1772873084512,5.88374281,1982.5,1982.2,2.56984042]
[1772873084810,1.74025142,1982.6,1982.2,2.56984042]
[1772873085110,5.88374432,1982.5,1982.2,2.56984042]
[1772873085304,1.74025142,1982.6,1982.2,2.56984042]
[1772873085503,5.88433639,1982.5,1982.2,2.56984042]
[1772873085711,1.74025142,1982.6,1982.2,2.56984042]
[1772873085913,5.88435475,1982.5,1982.2,2.56984042]
[1772873086114,1.74025142,1982.6,1982.2,2.56984042]
[1772873086314,5.88526605,1982.5,1982.2,2.56984042]
[1772873086514,1.74025142,1982.6,1982.2,2.56984042]
[1772873086711,5.8852652,1982.5,1982.2,2.56984042]
[1772873086916,1.74025142,1982.6,1982.2,2.56984042]
[1772873087107,7.57712843,1982.5,1982.2,2.56984042]
[1772873087414,1.6918576,1982.5,1982.2,2.56984042]
[1772873088413,1.67785047,1982.6,1982.2,2.56984042]
[1772873088614,5.88652988,1982.5,1982.2,2.56984042]
[1772873088817,1.67785047,1982.6,1982.2,2.56984042]
[1772873089016,5.88580239,1982.5,1982.2,2.56984042]
[1772873089212,1.67785047,1982.6,1982.2,2.56984042]
[1772873089416,7.54364881,1982.5,1982.2,2.56984042]
[1772873089715,1.657683,1982.5,1982.2,2.56984042]
[1772873090916,1.657683,1982.5,1982.0,2.61796071]
[1772873091120,12.21671182,1982.7,1982.0,2.61796071]
[1772873091121,8.33797609,1982.4,1982.0,2.61796071]
[1772873091323,2.45168144,1982.4,1982.0,2.61796071]
[1772873092325,2.45168144,1982.6,1982.0,2.61796071]
[1772873092625,5.88750552,1982.5,1982.0,2.61796071]
[1772873092823,5.88750552,1982.4,1982.0,2.61796071]
[1772873093025,2.45168144,1982.5,1982.0,2.61796071]
[1772873093324,5.88840202,1982.4,1982.0,2.61796071]
[1772873093525,2.45168144,1982.6,1982.0,2.61796071]
[1772873093724,5.88874575,1982.5,1982.0,2.61796071]
[1772873093925,5.88874575,1982.4,1982.0,2.61796071]
[1772873094127,2.45168144,1982.6,1982.0,2.61796071]
[1772873094425,8.34125055,1982.5,1982.0,2.61796071]
[1772873094623,5.88956911,1982.4,1982.0,2.61796071]
[1772873094823,2.45168144,1982.5,1982.0,2.61796071]
[1772873095025,5.88956907,1982.4,1982.0,2.61796071]
[1772873095226,2.45168144,1982.5,1982.0,2.61796071]
[1772873095427,8.34196308,1982.4,1982.0,2.61796071]
[1772873095626,2.45168144,1982.4,1982.0,2.61796071]
[1772873100436,2.50157264,1982.5,1982.0,2.61796071]
[1772873100736,8.39048662,1982.4,1982.0,2.61796071]
[1772873100935,2.50157264,1982.4,1982.0,2.61796071]
[1772873102431,5.88822759,1982.3,1982.0,2.61796071]
[1772873102736,2.50157264,1982.4,1982.0,2.61796071]
[1772873102936,5.88916098,1982.3,1982.0,2.61796071]
[1772873103139,2.50157264,1982.4,1982.0,2.61796071]
[1772873103339,5.88884103,1982.3,1982.0,2.61796071]
[1772873103637,2.50157264,1982.4,1982.0,2.61796071]
[1772873103836,5.88883413,1982.3,1982.0,2.61796071]
[1772873104137,2.50157264,1982.4,1982.0,2.61796071]
[1772873106339,2.50157264,1982.4,1981.9,2.50459437]
[1772873107540,2.3272327,1982.2,1981.9,2.50459437]
[1772873108840,2.3272327,1982.2,1981.9,0.00630493]
[1772873110843,2.3272327,1982.2,1981.9,2.50459437]
[1772873112545,2.3272327,1982.2,1981.9,0.00630493]
[1772873112748,2.3272327,1982.2,1981.6,2.49828944]
[1772873113242,2.3272327,1982.2,1981.7,2.49828944]
[1772873113741,2.3272327,1982.3,1981.7,2.50255426]
[1772873113943,5.89716574,1982.2,1981.8,2.49828944]
[1772873114243,2.3272327,1982.3,1981.8,2.49828944]
[1772873114743,5.8966469,1982.2,1981.8,2.49828944]
[1772873115044,2.3272327,1982.3,1981.8,2.49828944]
[1772873116044,2.3272327,1982.3,1981.7,2.50255426]
[1772873116842,2.3272327,1982.1,1981.7,2.50255426]
[1772873124248,2.3272327,1982.3,1981.7,2.50255426]
[1772873124847,5.89659297,1982.2,1981.7,2.50255426]
[1772873125049,2.3272327,1982.3,1981.7,2.50255426]
[1772873125647,5.89647854,1982.2,1981.7,2.50255426]
[1772873125946,2.3272327,1982.3,1981.7,2.50255426]
[1772873126147,5.89665237,1982.2,1981.7,2.50255426]
[1772873126348,2.3272327,1982.3,1981.7,2.50255426]
[1772873126547,5.89655448,1982.2,1981.9,2.49828944]
[1772873126749,2.3272327,1982.3,1981.9,2.49828944]
[1772873126944,5.89657071,1982.2,1981.9,2.49828944]
[1772873127144,2.3272327,1982.3,1981.9,2.49828944]
[1772873127344,5.8967034,1982.2,1981.9,2.49828944]
[1772873127546,2.3272327,1982.3,1981.9,2.49828944]
[1772873127745,4.22271182,1982.4,1981.9,2.49828944]
[1772873127746,8.22417375,1982.2,1981.9,2.49828944]
[1772873127944,2.3272327,1982.2,1981.9,2.49828944]
[1772873131250,2.3272327,1982.3,1981.9,2.49828944]
[1772873131445,5.89820187,1982.2,1981.9,2.49828944]
[1772873131646,2.3272327,1982.3,1981.9,2.49828944]
[1772873131951,8.22515206,1982.2,1981.9,2.49828944]
[1772873132152,2.3272327,1982.2,1981.9,2.49828944]
[1772873139154,5.90192357,1982.1,1981.9,2.49828944]
[1772873139453,2.3272327,1982.2,1981.9,2.49828944]
[1772873139645,5.9020072,1982.1,1981.9,2.49828944]
[1772873139849,2.3272327,1982.2,1981.9,2.49828944]
[1772873140045,5.90200634,1982.1,1981.9,2.49828944]
[1772873140250,2.3272327,1982.2,1981.9,2.49828944]
[1772873140446,5.90270003,1982.1,1981.9,2.49828944]
[1772873140747,2.3272327,1982.2,1981.9,2.49828944]
[1772873140951,5.90391231,1982.1,1981.9,2.49828944]
[1772873141145,2.3272327,1982.2,1981.9,2.49828944]
[1772873141355,5.90486339,1982.1,1981.9,2.49828944]
[1772873141655,2.3272327,1982.2,1981.9,2.49828944]
[1772873141851,5.90487752,1982.1,1981.9,2.49828944]
[1772873142050,2.3272327,1982.2,1981.9,2.49828944]
[1772873142347,5.90638342,1982.1,1981.9,2.49828944]
[1772873142551,2.3272327,1982.2,1981.9,2.49828944]
[1772873142748,2.15396037,1982.4,1981.9,2.49828944]
[1772873164169,2.1433379,1982.5,1981.9,2.49828944]
[1772873164375,6.16652044,1982.7,1981.9,2.49828944]
[1772873164376,2.1433379,1982.7,1981.9,2.49828944]
[1772873164580,7.9986132,1982.6,1981.9,2.49828944]
[1772873164868,2.1433379,1982.6,1981.9,2.49828944]
[1772873169384,2.1433379,1982.8,1981.9,2.49828944]
[1772873169581,5.85437251,1982.7,1981.9,2.49828944]
[1772873169881,5.85437251,1982.6,1981.9,2.49828944]
[1772873170078,2.1433379,1982.7,1981.9,2.49828944]
[1772873170278,7.99834967,1982.6,1981.9,2.49828944]
[1772873170482,2.1433379,1982.6,1981.9,2.49828944]
[1772873213017,2.1433379,1982.6,1982.1,1.96156772]
[1772873217224,2.1433379,1982.6,1982.0,40.8]
[1772873217824,2.1433379,1982.6,1982.0,42.76156772]
[1772873221327,2.1433379,1982.6,1982.1,1.93773297]
[1772873224527,2.1433379,1982.6,1982.0,40.8]
[1772873224727,2.1433379,1982.6,1982.0,42.67308018]
[1772873229621,1.89437783,1982.4,1982.0,42.67308018]
[1772873229826,1.89437783,1982.4,1982.1,1.87308018]
[1772873232732,1.89437783,1982.4,1982.1,32.24608018]
[1772873235835,6.17988887,1982.8,1982.2,1.87308018]
[1772873236034,1.89437783,1982.6,1982.2,1.87308018]
[1772873236733,1.89437783,1982.6,1982.1,32.24608018]
[1772873239232,1.89437783,1982.6,1982.1,30.373]
[1772873239437,1.89437783,1982.4,1981.9,1.87308018]
[1772873240942,1.89437783,1982.2,1981.7,0.00426482]
[1772873241243,1.89437783,1982.0,1981.6,31.89490944]
[1772873241546,1.89437783,1982.0,1981.6,72.69490944]
[1772873241842,1.89437783,1982.0,1981.6,31.89490944]
[1772873242042,1.90089446,1982.0,1981.6,31.89985165]
[1772873242335,1.90089446,1982.0,1981.6,1.38085165]
[1772873244943,1.90089446,1982.0,1981.7,1.87308018]
[1772873245143,1.89437783,1982.2,1981.7,1.87308018]
[1772873246042,1.90010643,1982.2,1981.7,1.87308018]
[1772873251048,1.90010643,1982.2,1981.6,31.97485165]
[1772873251252,1.90010643,1982.2,1981.6,1.38085165]
[1772873254157,1.90010643,1982.2,1981.7,2.32706908]
[1772873259758,1.90010643,1982.2,1981.6,3.70792073]
[1772873261759,1.90010643,1982.2,1981.6,1.38085165]
[1772873266560,2.46179538,1982.1,1981.6,1.38085165]
[1772873267065,2.46179538,1982.1,1981.6,3.70792073]
[1772873268866,2.46179538,1982.1,1981.4,40.8]
[1772873268867,2.46179538,1982.1,1981.4,2.32706908]
[1772873269166,2.46179538,1982.0,1981.4,2.32706908]
[1772873270163,1.95050693,1982.2,1981.4,2.32706908]
[1772873270164,2.46752398,1982.2,1981.5,2.32706908]
[1772873270365,8.38201069,1982.1,1981.5,2.32706908]
[1772873270565,2.46179538,1982.1,1981.5,2.32706908]
[1772873271957,2.46179538,1981.9,1981.5,2.32706908]
[1772873279964,1.95050693,1982.2,1981.5,2.32706908]
[1772873280170,5.92054871,1982.1,1981.5,2.32706908]
[1772873280470,5.92054871,1982.0,1981.5,2.32706908]
[1772873280764,2.32815146,1982.2,1981.5,2.32706908]
[1772873280970,8.24306442,1982.1,1981.5,2.32706908]
[1772873281268,5.92064156,1982.0,1981.5,2.32706908]
[1772873281468,8.24306442,1982.0,1981.5,2.32706908]
[1772873281669,2.32242286,1982.0,1981.5,2.32706908]
[1772873286068,2.32242286,1982.0,1981.2,9.87550017]
[1772873286069,2.25363927,1981.8,1981.2,2.16241633]
[1772873286469,2.25363927,1981.8,1981.3,2.16241633]
[1772873287072,2.25363927,1981.8,1981.3,2.16845785]
[1772873298287,2.25363927,1982.0,1981.5,1.94477833]
[1772873298588,2.25363927,1982.0,1981.3,0.00604152]
[1772873298589,2.25363927,1982.0,1981.6,2.16241633]
[1772873309594,2.25363927,1982.0,1981.4,2.16241633]
[1772873325011,2.09967858,1981.8,1981.4,2.16241633]
[1772873329913,2.09967858,1981.8,1981.3,2.0261562]
[1772873340325,2.09967858,1981.8,1981.3,0.00604152]
[1772873341729,1.81101237,1981.6,1981.3,0.00604152]
[1772873341929,1.81101237,1981.6,1981.1,31.363]
[1772873342833,1.81101237,1981.6,1981.1,31.3693071]
[1772873343433,1.81101237,1981.6,1981.1,33.21488019]
[1772873344835,1.81101237,1981.6,1981.1,0.0063071]
[1772873346431,1.81101237,1981.6,1981.1,1.85188019]
[1772873347435,1.80767873,1981.9,1981.1,1.85188019]
[1772873347638,1.80767873,1981.7,1981.1,1.85188019]
[1772873348135,1.80767873,1981.7,1981.1,0.0063071]
[1772873351042,1.80767873,1981.7,1981.1,1.85188019]
[1772873352939,1.80767873,1981.9,1981.1,1.85188019]
[1772873360747,1.80767873,1981.9,1981.2,1.84557309]
[1772873388465,1.80767873,1981.9,1981.3,1.6949714]
[1772873395262,1.75151323,1982.1,1981.4,1.944785]
[1772873395566,7.62557586,1982.0,1981.5,1.6949714]
[1772873395766,1.75151323,1982.0,1981.5,1.6949714]
[1772873396066,1.75151323,1982.1,1981.7,1.6949714]
[1772873398760,1.63381863,1982.2,1981.7,1.6949714]
[1772873409668,1.63381863,1982.2,1981.5,1.65535143]
[1772873421580,3.57860363,1982.2,1981.5,1.65535143]
[1772873421782,1.65913156,1982.1,1981.5,1.65535143]
[1772873424488,1.65913156,1982.1,1981.4,1.65535143]
[1772873426489,0.0057286,1982.2,1981.6,1.944785]
[1772873426689,1.66486016,1982.2,1981.7,1.65535143]
[1772873441703,1.66486016,1982.2,1981.5,1.4774836]
[1772873442805,1.54928586,1982.1,1981.5,1.4774836]
[1772873445905,1.54928586,1982.1,1981.3,1.4774836]
[1772873452913,1.54928586,1981.9,1981.3,1.4774836]
[1772873460514,1.39584865,1982.1,1981.3,1.4774836]
[1772873469024,1.39584865,1982.1,1981.4,1.36030902]
[1772873469319,1.41665949,1982.2,1981.4,1.36030902]
[1772873472425,1.41665949,1982.2,1981.5,1.36030902]
[1772873476926,0.0057286,1982.2,1981.5,1.36030902]
[1772873477223,1.41093089,1982.4,1981.5,1.36030902]
[1772873477927,1.41093089,1982.4,1981.6,1.36030902]
[1772873478127,1.41518275,1982.4,1981.6,1.36030902]
[1772873484234,1.41518275,1982.4,1981.8,1.36030902]
[1772873489631,1.41518275,1982.4,1981.9,40.8]
[1772873489836,1.41518275,1982.4,1981.9,42.16030902]
[1772873490634,1.41518275,1982.4,1982.0,1.36030902]
[1772873494030,1.41518275,1982.4,1981.7,32.7890506]
[1772873494635,1.41518275,1982.4,1981.8,40.8]
[1772873495437,1.41518275,1982.4,1981.8,42.1080506]
[1772873501742,1.41518275,1982.4,1981.9,1.3080506]